fUSD/lending_fUSD_20260530
["ID","MTS","AMOUNT","RATE_DAILY","PERIOD"]
[423403760,1780084825000,-1846.52,0.00041315,120]
[423403761,1780084825000,-500.0,0.00041315,120]
[423403762,1780084825000,-2371.97,0.00041315,120]
[423403756,1780084825000,-500.0,0.00041315,120]
[423403763,1780084825000,-924.07,0.00041315,120]
[423403764,1780084825000,-500.0,0.00041315,120]
[423403765,1780084826000,-1270.37,0.00041315,120]
[423403766,1780084826000,-500.0,0.00041315,120]
[423403767,1780084826000,-500.0,0.00041315,120]
[423403769,1780084826000,-2767.0,0.00041315,120]
[423403768,1780084826000,-500.0,0.00041315,120]
[423403770,1780084826000,-500.0,0.00041315,120]
[423403771,1780084826000,-500.0,0.00041315,120]
[423403780,1780084826000,-500.0,0.00041315,120]
[423403773,1780084826000,-500.0,0.00041315,120]
[423403774,1780084826000,-500.0,0.00041315,120]
[423403775,1780084826000,-1062.75,0.00041315,120]
[423403776,1780084826000,-1638.1,0.00041315,120]
[423403777,1780084826000,-669.14,0.00041315,120]
[423403778,1780084826000,-500.0,0.00041315,120]
[423403779,1780084826000,-500.0,0.00041315,45]
[423403772,1780084826000,-500.0,0.00041315,120]
[423403781,1780084827000,-500.0,0.00041315,120]
[423403782,1780084827000,-500.0,0.00041315,120]
[423403784,1780084827000,-1034.93,0.00041315,120]
[423403785,1780084827000,-501.87,0.00041315,120]
[423403786,1780084827000,-500.0,0.00041315,120]
[423403787,1780084827000,-500.0,0.00041315,120]
[423403788,1780084827000,-500.12,0.00041315,120]
[423403783,1780084827000,-709.56,0.00041315,120]
[423403789,1780084827000,-500.0,0.00041315,120]
[423403791,1780084827000,-500.0,0.00041315,120]
[423403792,1780084827000,-500.0,0.00041315,120]
[423403793,1780084827000,-554.5,0.00041315,120]
[423403794,1780084827000,-892.69,0.00041315,120]
[423403795,1780084827000,-624.69821921,0.00041315,120]
[423403790,1780084827000,-500.0,0.00041315,120]
[423403796,1780084827000,-500.0,0.00041315,120]
[423403797,1780084828000,-500.0,0.00041315,120]
[423403798,1780084828000,-2513.76,0.00041315,120]
[423403799,1780084828000,-2260.05,0.00041315,120]
[423403801,1780084828000,-500.0,0.00041315,120]
[423403802,1780084828000,-500.0,0.00041315,120]
[423403804,1780084828000,-1771.61,0.00041315,120]
[423403803,1780084828000,-699.92,0.00041315,120]
[423403800,1780084828000,-500.0,0.00041315,120]
[423403806,1780084828000,-500.0,0.00041315,120]
[423403805,1780084828000,-527.28,0.00041315,120]
[423403813,1780084828000,-500.0,0.00041315,120]
[423403812,1780084828000,-514.79460305,0.00041315,120]
[423403807,1780084828000,-2831.45,0.00041315,120]
[423403810,1780084828000,-500.0,0.00041315,120]
[423403809,1780084828000,-1981.32,0.00041315,120]
[423403811,1780084828000,-500.0,0.00041315,120]
[423403808,1780084828000,-500.0,0.00041315,120]
[423403814,1780084829000,-500.0,0.00041315,120]
[423403815,1780084829000,-500.0,0.00041315,120]
[423403816,1780084829000,-500.0,0.00041315,120]
[423403819,1780084829000,-801.23,0.00041315,120]
[423403817,1780084829000,-2973.26,0.00041315,120]
[423403821,1780084829000,-1297.85,0.00041315,120]
[423403822,1780084829000,-500.0,0.00041315,120]
[423403823,1780084829000,-500.0,0.00041315,120]
[423403824,1780084829000,-566.19,0.00041315,120]
[423403820,1780084829000,-500.0,0.00041315,120]
[423403818,1780084829000,-500.0,0.00041315,120]
[423403831,1780084830000,-500.0,0.00041315,120]
[423403825,1780084830000,-768.86,0.00041315,120]
[423403827,1780084830000,-500.0,0.00041315,120]
[423403826,1780084830000,-500.0,0.00041315,120]
[423403828,1780084830000,-1429.56,0.00041315,120]
[423403829,1780084830000,-500.0,0.00041315,120]
[423403830,1780084830000,-500.0,0.00041315,120]
[423403833,1780084830000,-934.16,0.00041315,120]
[423403834,1780084830000,-500.0,0.00041315,120]
[423403835,1780084830000,-500.0,0.00041315,120]
[423403836,1780084830000,-500.0,0.00041315,120]
[423403837,1780084830000,-500.0,0.00041315,120]
[423403838,1780084830000,-500.0,0.00041315,120]
[423403839,1780084830000,-613.48,0.00041315,120]
[423403840,1780084830000,-751.08,0.00041315,120]
[423403832,1780084830000,-1000.7,0.00041315,120]
[423403841,1780084831000,-500.0,0.00041315,120]
[423403842,1780084831000,-500.0,0.00041315,120]
[423403843,1780084831000,-566.86,0.00041315,120]
[423403844,1780084831000,-500.0,0.00041315,120]
[423403846,1780084831000,-2826.59,0.00041315,120]
[423403845,1780084831000,-500.0,0.00041315,120]
[423403848,1780084831000,-744.7,0.00041315,120]
[423403847,1780084831000,-1174.45,0.00041315,120]
[423403849,1780084831000,-500.0,0.00041315,120]
[423403851,1780084831000,-500.0,0.00041315,120]
[423403850,1780084831000,-567.95178438,0.00041315,120]
[423403852,1780084831000,-565.09495866,0.00041315,120]
[423403853,1780084831000,-500.0,0.00041315,120]
[423403854,1780084831000,-1054.41,0.00041315,120]
[423403855,1780084831000,-500.0,0.00041315,120]
[423403856,1780084831000,-500.0,0.00041315,120]
[423403857,1780084832000,-500.0,0.00041315,120]
[423403859,1780084832000,-665.96,0.00041315,120]
[423403858,1780084832000,-1012.81,0.00041315,120]
[423403860,1780084832000,-500.0,0.00041315,120]
[423403861,1780084832000,-649.08,0.00041315,120]
[423403862,1780084832000,-714.44,0.00041315,120]
[423403863,1780084832000,-536.63,0.00041315,120]
[423403864,1780084832000,-500.0,0.00041315,120]
[423403866,1780084832000,-500.0,0.00041315,120]
[423403865,1780084832000,-879.89,0.00041315,120]
[423403867,1780084832000,-513.04,0.00041315,120]
[423403869,1780084832000,-758.71,0.00041315,120]
[423403868,1780084832000,-593.92,0.00041315,120]
[423403871,1780084832000,-2393.6,0.00041315,120]
[423403870,1780084832000,-855.41,0.00041315,120]
[423403872,1780084832000,-500.0,0.00041315,120]
[423403873,1780084832000,-500.0,0.00041315,120]
[423403874,1780084833000,-2172.61,0.00041315,120]
[423403876,1780084833000,-500.0,0.00041315,120]
[423403875,1780084833000,-585.39,0.00041315,120]
[423403877,1780084833000,-500.0,0.00041315,120]
[423403878,1780084833000,-500.0,0.00041315,120]
[423403879,1780084833000,-500.0,0.00041315,120]
[423403880,1780084833000,-215.43470281,0.00041315,120]
[423403881,1780084833000,-500.0,0.00041315,120]
[423403882,1780084833000,-2613.99,0.00041315,120]
[423403883,1780084833000,-2126.19,0.00041315,120]
[423403884,1780084833000,-934.41,0.00041315,120]
[423403885,1780084833000,-500.0,0.00041315,120]
[423403886,1780084833000,-846.37,0.00041315,120]
[423403887,1780084833000,-500.0,0.00041315,120]
[423403888,1780084833000,-500.0,0.00041315,120]
[423403889,1780084833000,-1739.72,0.00041315,120]
[423403890,1780084834000,-689.02,0.00041315,120]
[423403892,1780084834000,-510.0,0.00041315,120]
[423403893,1780084834000,-277.45940477,0.00041315,30]
[423403894,1780084834000,-1017.51,0.00041315,120]
[423403895,1780084834000,-500.0,0.00041315,120]
[423403896,1780084834000,-500.0,0.00041315,120]
[423403897,1780084834000,-1768.91,0.00041315,120]
[423403891,1780084834000,-500.0,0.00041315,120]
[423403900,1780084834000,-500.0,0.00041315,120]
[423403899,1780084834000,-638.22,0.00041315,120]
[423403901,1780084834000,-500.0,0.00041315,120]
[423403902,1780084834000,-500.0,0.00041315,120]
[423403903,1780084834000,-500.0,0.00041315,120]
[423403904,1780084834000,-1860.0,0.00041315,120]
[423403905,1780084834000,-500.0,0.00041315,120]
[423403898,1780084834000,-500.0,0.00041315,120]
[423403907,1780084835000,-500.0,0.00041315,120]
[423403906,1780084835000,-500.0,0.00041315,120]
[423403908,1780084835000,-500.0,0.00041315,120]
[423403910,1780084835000,-611.56,0.00041315,120]
[423403909,1780084835000,-500.0,0.00041315,120]
[423403912,1780084835000,-2316.19,0.00041315,120]
[423403911,1780084835000,-500.0,0.00041315,120]
[423403913,1780084835000,-702.54,0.00041315,120]
[423403914,1780084835000,-504.07,0.00041315,120]
[423403915,1780084835000,-3005.32,0.00041315,120]
[423403916,1780084835000,-500.0,0.00041315,120]
[423403917,1780084835000,-500.0,0.00041315,120]
[423403918,1780084835000,-500.0,0.00041315,120]
[423403919,1780084835000,-500.0,0.00041315,120]
[423403920,1780084835000,-500.0,0.00041315,120]
[423403921,1780084835000,-1339.35,0.00041315,120]
[423403923,1780084836000,-2447.46,0.00041315,120]
[423403922,1780084836000,-500.0,0.00041315,120]
[423403925,1780084836000,-547.98,0.00041315,120]
[423403926,1780084836000,-500.0,0.00041315,120]
[423403927,1780084836000,-542.66,0.00041315,120]
[423403928,1780084836000,-500.0,0.00041315,120]
[423403929,1780084836000,-327.57319117,0.00041315,120]
[423403924,1780084836000,-500.0,0.00041315,120]
[423403931,1780084836000,-1546.68,0.00041315,120]
[423403932,1780084836000,-783.64,0.00041315,120]
[423403934,1780084836000,-579.98,0.00041315,120]
[423403933,1780084836000,-500.0,0.00041315,120]
[423403935,1780084836000,-500.0,0.00041315,120]
[423403936,1780084836000,-500.0,0.00041315,120]
[423403937,1780084836000,-500.0,0.00041315,120]
[423403930,1780084836000,-500.0,0.00041315,30]
[423403938,1780084837000,-500.0,0.00041315,120]
[423403939,1780084837000,-520.17,0.00041315,120]
[423403941,1780084837000,-500.0,0.00041315,120]
[423403942,1780084837000,-630.01,0.00041315,120]
[423403943,1780084837000,-500.0,0.00041315,120]
[423403945,1780084837000,-442.78264553,0.00041315,120]
[423403944,1780084837000,-697.63,0.00041315,120]
[423403940,1780084837000,-500.0,0.00041315,120]
[423403948,1780084837000,-1057.08,0.00041315,120]
[423403947,1780084837000,-244.05071826,0.00041315,120]
[423403949,1780084837000,-500.0,0.00041315,120]
[423403950,1780084837000,-500.0,0.00041315,120]
[423403951,1780084837000,-682.9,0.00041315,120]
[423403952,1780084837000,-673.5,0.00041315,120]
[423403953,1780084837000,-500.0,0.00041315,120]
[423403946,1780084837000,-500.0,0.00041315,120]
[423403954,1780084838000,-500.0,0.00041315,120]
[423403955,1780084838000,-500.0,0.00041315,120]
[423403956,1780084838000,-500.0,0.00041315,120]
[423403957,1780084838000,-4243.23,0.00041315,120]
[423403958,1780084838000,-500.0,0.00041315,120]
[423403959,1780084838000,-500.0,0.00041315,120]
[423403960,1780084838000,-500.0,0.00041315,120]
[423403964,1780084838000,-587.70348538,0.00041315,120]
[423403962,1780084838000,-706.01,0.00041315,120]
[423403963,1780084838000,-500.0,0.00041315,120]
[423403965,1780084838000,-500.0,0.00041315,120]
[423403966,1780084838000,-500.0,0.00041315,120]
[423403967,1780084838000,-500.0,0.00041315,120]
[423403968,1780084838000,-2661.86,0.00041315,120]
[423403969,1780084838000,-500.0,0.00041315,120]
[423403961,1780084838000,-2592.46,0.00041315,120]
[423403973,1780084839000,-1935.36,0.00041315,120]
[423403974,1780084839000,-500.0,0.00041315,120]
[423403978,1780084839000,-500.0,0.00041315,120]
[423403972,1780084839000,-500.0,0.00041315,120]
[423403970,1780084839000,-500.0,0.00041315,120]
[423403975,1780084839000,-1165.92,0.00041315,120]
[423403971,1780084839000,-530.43,0.00041315,120]
[423403977,1780084839000,-1635.76,0.00041315,120]
[423403982,1780084839000,-500.0,0.00041315,120]
[423403979,1780084839000,-500.0,0.00041315,120]
[423403985,1780084839000,-500.0,0.00041315,120]
[423403983,1780084839000,-500.0,0.00041315,120]
[423403976,1780084839000,-500.0,0.00041315,120]
[423403984,1780084839000,-427.72412286,0.00041315,120]
[423403980,1780084839000,-500.0,0.00041315,120]
[423403981,1780084839000,-500.0,0.00041315,120]
[423403986,1780084840000,-1626.26,0.00041315,120]
[423403987,1780084840000,-1675.97,0.00041315,120]
[423403988,1780084840000,-717.91,0.00041315,120]
[423403989,1780084840000,-871.6,0.00041315,120]
[423403990,1780084840000,-500.0,0.00041315,120]
[423403992,1780084840000,-826.38,0.00041315,120]
[423403991,1780084840000,-789.7,0.00041315,120]
[423403994,1780084840000,-500.0,0.00041315,120]
[423403995,1780084840000,-2279.5,0.00041315,120]
[423403996,1780084840000,-2576.93,0.00041315,120]
[423403997,1780084840000,-500.0,0.00041315,120]
[423403999,1780084840000,-500.0,0.00041315,120]
[423403998,1780084840000,-500.0,0.00041315,120]
[423403993,1780084840000,-500.0,0.00041315,120]
[423404005,1780084841000,-1014.74,0.00041315,120]
[423404001,1780084841000,-500.0,0.00041315,120]
[423404000,1780084841000,-500.0,0.00041315,120]
[423404002,1780084841000,-1544.0,0.00041315,120]
[423404004,1780084841000,-500.0,0.00041315,120]
[423404003,1780084841000,-1359.48,0.00041315,120]
[423404007,1780084841000,-2292.26,0.00041315,120]
[423404011,1780084841000,-500.0,0.00041315,120]
[423404008,1780084841000,-500.0,0.00041315,120]
[423404009,1780084841000,-644.87,0.00041315,120]
[423404010,1780084841000,-500.0,0.00041315,120]
[423404012,1780084841000,-400.00905405,0.00041315,120]
[423404013,1780084841000,-2574.41,0.00041315,120]
[423404014,1780084841000,-500.0,0.00041315,120]
[423404015,1780084841000,-500.0,0.00041315,120]
[423404006,1780084841000,-525.71,0.00041315,120]
[423404021,1780084842000,-500.0,0.00041315,120]
[423404017,1780084842000,-500.0,0.00041315,120]
[423404016,1780084842000,-500.0,0.00041315,120]
[423404019,1780084842000,-725.08,0.00041315,120]
[423404018,1780084842000,-644.09,0.00041315,120]
[423404020,1780084842000,-1323.48,0.00041315,120]
[423404022,1780084842000,-211.45216626,0.00041315,120]
[423404027,1780084842000,-500.0,0.00041315,120]
[423404025,1780084842000,-500.0,0.00041315,120]
[423404024,1780084842000,-500.0,0.00041315,120]
[423404026,1780084842000,-500.0,0.00041315,120]
[423404031,1780084842000,-1016.96,0.00041315,120]
[423404028,1780084842000,-635.02,0.00041315,120]
[423404029,1780084842000,-1115.44,0.00041315,120]
[423404030,1780084842000,-508.0,0.00041315,120]
[423404023,1780084842000,-500.0,0.00041315,120]
[423404032,1780084843000,-1316.76,0.00041315,120]
[423404033,1780084843000,-528.23,0.00041315,120]
[423404035,1780084843000,-746.24,0.00041315,120]
[423404034,1780084843000,-500.0,0.00041315,120]
[423404036,1780084843000,-1465.76,0.00041315,120]
[423404037,1780084843000,-924.39,0.00041315,120]
[423404038,1780084843000,-500.0,0.00041315,120]
[423404039,1780084843000,-500.0,0.00041315,120]
[423404041,1780084843000,-856.72,0.00041315,120]
[423404042,1780084843000,-1064.65,0.00041315,120]
[423404043,1780084843000,-500.0,0.00041315,120]
[423404045,1780084843000,-500.0,0.00041315,120]
[423404044,1780084843000,-1404.35,0.00041315,120]
[423404047,1780084843000,-500.0,0.00041315,120]
[423404046,1780084843000,-500.0,0.00041315,120]
[423404048,1780084843000,-577.5,0.00041315,120]
[423404040,1780084843000,-2386.53,0.00041315,120]
[423404053,1780084844000,-500.0,0.00041315,120]
[423404054,1780084844000,-1346.67,0.00041315,120]
[423404052,1780084844000,-732.76,0.00041315,120]
[423404055,1780084844000,-979.59,0.00041315,120]
[423404050,1780084844000,-500.0,0.00041315,120]
[423404049,1780084844000,-500.0,0.00041315,120]
[423404051,1780084844000,-2530.46,0.00041315,120]
[423404057,1780084844000,-754.0,0.00041315,60]
[423404065,1780084844000,-500.0,0.00041315,120]
[423404059,1780084844000,-500.0,0.00041315,120]
[423404064,1780084844000,-1292.18,0.00041315,120]
[423404063,1780084844000,-1250.98,0.00041315,120]
[423404062,1780084844000,-500.0,0.00041315,120]
[423404056,1780084844000,-500.0,0.00041315,120]
[423404060,1780084844000,-500.0,0.00041315,120]
[423404058,1780084844000,-556.61,0.00041315,120]
[423404061,1780084844000,-649.77,0.00041315,120]
[423404066,1780084845000,-500.0,0.00041315,120]
[423404067,1780084845000,-500.0,0.00041315,120]
[423404068,1780084845000,-500.0,0.00041315,120]
[423404069,1780084845000,-613.58,0.00041315,30]
[423404070,1780084845000,-1545.41,0.00041315,120]
[423404071,1780084845000,-500.0,0.00041315,120]
[423404073,1780084845000,-500.0,0.00041315,120]
[423404072,1780084845000,-500.0,0.00041315,120]
[423404074,1780084845000,-925.46,0.00041315,120]
[423404077,1780084845000,-860.96,0.00041315,120]
[423404076,1780084845000,-500.0,0.00041315,120]
[423404078,1780084845000,-2093.62,0.00041315,120]
[423404079,1780084845000,-545.78540898,0.00041315,120]
[423404080,1780084845000,-500.0,0.00041315,120]
[423404081,1780084845000,-1358.67,0.00041315,120]
[423404075,1780084845000,-500.0,0.00041315,120]
[423404082,1780084846000,-732.75,0.00041315,120]
[423404083,1780084846000,-500.0,0.00041315,120]
[423404085,1780084846000,-541.76,0.00041315,120]
[423404084,1780084846000,-500.0,0.00041315,120]
[423404086,1780084846000,-500.0,0.00041315,120]
[423404088,1780084846000,-500.0,0.00041315,120]
[423404090,1780084846000,-796.61,0.00041315,120]
[423404089,1780084846000,-1917.49,0.00041315,120]
[423404092,1780084846000,-500.0,0.00041315,120]
[423404091,1780084846000,-500.0,0.00041315,120]
[423404093,1780084846000,-817.4,0.00041315,30]
[423404087,1780084846000,-500.0,0.00041315,120]
[423404094,1780084847000,-908.89,0.00041315,120]
[423404095,1780084847000,-500.0,0.00041315,120]
[423404096,1780084847000,-500.0,0.00041315,120]
[423404097,1780084847000,-500.0,0.00041315,120]
[423404098,1780084847000,-863.3,0.00041315,120]
[423404099,1780084847000,-500.0,0.00041315,120]
[423404100,1780084847000,-500.0,0.00041315,120]
[423404101,1780084847000,-645.37,0.00041315,120]
[423404103,1780084847000,-1265.96,0.00041315,120]
[423404104,1780084847000,-1026.64,0.00041315,120]
[423404105,1780084847000,-923.62,0.00041315,120]
[423404107,1780084847000,-1382.65,0.00041315,120]
[423404106,1780084847000,-2258.95,0.00041315,120]
[423404108,1780084847000,-1885.16,0.00041315,120]
[423404109,1780084847000,-500.0,0.00041315,120]
[423404102,1780084847000,-500.0,0.00041315,120]
[423404110,1780084848000,-599.07,0.00041315,120]
[423404111,1780084848000,-1685.73,0.00041315,120]
[423404115,1780084848000,-1821.64,0.00041315,120]
[423404112,1780084848000,-3730.16,0.00041315,120]
[423404117,1780084848000,-1601.98,0.00041315,120]
[423404113,1780084848000,-738.44,0.00041315,120]
[423404118,1780084848000,-500.0,0.00041315,120]
[423404116,1780084848000,-855.73,0.00041315,120]
[423404123,1780084848000,-500.0,0.00041315,120]
[423404122,1780084848000,-1043.53,0.00041315,120]
[423404114,1780084848000,-500.0,0.00041315,120]
[423404119,1780084848000,-500.0,0.00041315,120]
[423404121,1780084848000,-1057.34,0.00041315,120]
[423404120,1780084848000,-500.0,0.00041315,120]
[423404124,1780084849000,-4432.26,0.00041315,120]
[423404125,1780084849000,-895.22,0.00041315,120]
[423404126,1780084849000,-500.0,0.00041315,120]
[423404127,1780084849000,-1725.75,0.00041315,120]
[423404129,1780084849000,-4060.45,0.00041315,30]
[423404130,1780084849000,-3898.25,0.00041315,120]
[423404128,1780084849000,-500.0,0.00041315,120]
[423404133,1780084849000,-588.89,0.00041315,120]
[423404132,1780084849000,-776.09,0.00041315,120]
[423404134,1780084849000,-1054.44,0.00041315,120]
[423404135,1780084849000,-500.0,0.00041315,120]
[423404136,1780084849000,-500.0,0.00041315,120]
[423404137,1780084849000,-558.79277457,0.00041315,120]
[423404138,1780084849000,-721.72,0.00041315,120]
[423404131,1780084849000,-2729.28,0.00041315,120]
[423404143,1780084850000,-500.0,0.00041315,120]
[423404139,1780084850000,-500.0,0.00041315,60]
[423404140,1780084850000,-500.0,0.00041315,120]
[423404141,1780084850000,-561.73,0.00041315,120]
[423404142,1780084850000,-500.0,0.00041315,120]
[423404144,1780084850000,-500.0,0.00041315,120]
[423404145,1780084850000,-500.0,0.00041315,120]
[423404151,1780084850000,-500.16011019,0.00041315,120]
[423404147,1780084850000,-500.0,0.00041315,120]
[423404148,1780084850000,-1391.51,0.00041315,120]
[423404149,1780084850000,-500.0,0.00041315,120]
[423404150,1780084850000,-500.0,0.00041315,120]
[423404153,1780084850000,-500.0,0.00041315,120]
[423404152,1780084850000,-230.67953368,0.00041315,120]
[423404146,1780084850000,-608.77,0.00041315,120]
[423404158,1780084851000,-998.65,0.00041315,120]
[423404154,1780084851000,-500.0,0.00041315,120]
[423404156,1780084851000,-500.0,0.00041315,120]
[423404155,1780084851000,-500.0,0.00041315,120]
[423404157,1780084851000,-759.0,0.00041315,120]
[423404159,1780084851000,-214.70660294,0.00041315,120]
[423404161,1780084851000,-2119.76,0.00041315,120]
[423404167,1780084851000,-1232.43,0.00041315,120]
[423404162,1780084851000,-500.0,0.00041315,120]
[423404164,1780084851000,-3538.92,0.00041315,120]
[423404163,1780084851000,-500.0,0.00041315,120]
[423404165,1780084851000,-500.0,0.00041315,120]
[423404169,1780084851000,-885.81,0.00041315,120]
[423404166,1780084851000,-735.82,0.00041315,120]
[423404168,1780084851000,-2415.5,0.00041315,120]
[423404160,1780084851000,-2573.75,0.00041315,120]
[423404170,1780084852000,-500.0,0.00041315,120]
[423404171,1780084852000,-500.0,0.00041315,120]
[423404172,1780084852000,-500.0,0.00041315,120]
[423404173,1780084852000,-500.0,0.00041315,120]
[423404174,1780084852000,-3281.52,0.00041315,120]
[423404175,1780084852000,-1587.49,0.00041315,120]
[423404177,1780084852000,-500.0,0.00041315,120]
[423404176,1780084852000,-1046.68,0.00041315,120]
[423404180,1780084852000,-3500.71,0.00041315,120]
[423404179,1780084852000,-982.88,0.00041315,120]
[423404182,1780084852000,-2469.05,0.00041315,120]
[423404181,1780084852000,-500.0,0.00041315,120]
[423404183,1780084852000,-500.0,0.00041315,120]
[423404184,1780084852000,-500.0,0.00041315,120]
[423404185,1780084852000,-1539.55,0.00041315,120]
[423404178,1780084852000,-877.47,0.00041315,120]
[423404187,1780084853000,-910.27,0.00041315,120]
[423404191,1780084853000,-500.0,0.00041315,120]
[423404188,1780084853000,-1032.43,0.00041315,120]
[423404189,1780084853000,-1079.78,0.00041315,120]
[423404186,1780084853000,-763.32,0.00041315,120]
[423404190,1780084853000,-500.0,0.00041315,120]
[423404192,1780084853000,-500.0,0.00041315,120]
[423404197,1780084853000,-500.0,0.00041315,120]
[423404194,1780084853000,-500.0,0.00041315,120]
[423404193,1780084853000,-500.0,0.00041315,120]
[423404200,1780084853000,-500.0,0.00041315,120]
[423404198,1780084853000,-500.0,0.00041315,120]
[423404196,1780084853000,-500.0,0.00041315,120]
[423404199,1780084853000,-2558.56,0.00041315,120]
[423404195,1780084853000,-1398.64,0.00041315,120]
[423404216,1780084854000,-3502.15,0.00041315,120]
[423404202,1780084854000,-769.41,0.00041315,120]
[423404201,1780084854000,-540.37,0.00041315,120]
[423404204,1780084854000,-500.0,0.00041315,120]
[423404203,1780084854000,-986.82,0.00041315,120]
[423404217,1780084854000,-500.0,0.00041315,120]
[423404206,1780084854000,-500.0,0.00041315,120]
[423404208,1780084854000,-2209.64,0.00041315,120]
[423404205,1780084854000,-1204.59,0.00041315,120]
[423404210,1780084854000,-589.03,0.00041315,120]
[423404212,1780084854000,-500.0,0.00041315,120]
[423404211,1780084854000,-549.59742996,0.00041315,120]
[423404214,1780084854000,-592.49,0.00041315,120]
[423404213,1780084854000,-500.0,0.00041315,120]
[423404215,1780084854000,-635.39,0.00041315,120]
[423404209,1780084854000,-500.0,0.00041315,120]
[423404207,1780084854000,-500.0,0.00041315,120]
[423404224,1780084855000,-1271.35,0.00041315,120]
[423404218,1780084855000,-1608.06,0.00041315,120]
[423404220,1780084855000,-500.75781891,0.00041315,120]
[423404221,1780084855000,-500.0,0.00041315,120]
[423404222,1780084855000,-500.0,0.00041315,120]
[423404219,1780084855000,-544.76,0.00041315,120]
[423404223,1780084855000,-500.0,0.00041315,120]
[423404226,1780084855000,-3237.02,0.00041315,120]
[423404227,1780084855000,-1773.19,0.00041315,120]
[423404233,1780084855000,-1315.24,0.00041315,120]
[423404232,1780084855000,-1424.61,0.00041315,120]
[423404225,1780084855000,-500.0,0.00041315,120]
[423404229,1780084855000,-500.0,0.00041315,120]
[423404230,1780084855000,-500.0,0.00041315,120]
[423404231,1780084855000,-500.0,0.00041315,120]
[423404228,1780084855000,-500.0,0.00041315,120]
[423404235,1780084856000,-500.0,0.00041315,120]
[423404234,1780084856000,-1442.2,0.00041315,120]
[423404236,1780084856000,-500.0,0.00041315,120]
[423404237,1780084856000,-691.91,0.00041315,120]
[423404238,1780084856000,-500.0,0.00041315,120]
[423404240,1780084856000,-500.0,0.00041315,120]
[423404241,1780084856000,-500.0,0.00041315,120]
[423404239,1780084856000,-500.0,0.00041315,120]
[423404245,1780084856000,-4722.4,0.00041315,120]
[423404244,1780084856000,-500.0,0.00041315,120]
[423404247,1780084856000,-500.0,0.00041315,120]
[423404246,1780084856000,-980.76,0.00041315,120]
[423404248,1780084856000,-2149.57,0.00041315,120]
[423404249,1780084856000,-500.0,0.00041315,120]
[423404250,1780084856000,-1037.72,0.00041315,120]
[423404243,1780084856000,-551.66848317,0.00041315,120]
[423404242,1780084856000,-500.0,0.00041315,120]
[423404257,1780084857000,-1415.4,0.00041315,120]
[423404251,1780084857000,-825.46,0.00041315,120]
[423404252,1780084857000,-726.77,0.00041315,120]
[423404253,1780084857000,-838.75,0.00041315,120]
[423404254,1780084857000,-776.94,0.00041315,120]
[423404255,1780084857000,-505.11,0.00041315,120]
[423404256,1780084857000,-2682.08,0.00041315,120]
[423404259,1780084857000,-500.0,0.00041315,120]